fUST/lending_fUST_20260212
["ID","MTS","AMOUNT","RATE_DAILY","PERIOD"]
[405199735,1770900658571,-554.26020471,0.00035616,5]
[405199736,1770900658581,-153.24426858,0.00035616,5]
[405199737,1770900658591,-500.0,0.00035616,5]
[405199738,1770900658611,-500.0,0.00035616,5]
[405199739,1770900658632,-500.0,0.00035616,5]
[405199740,1770900658644,-508.74405884,0.00035616,5]
[405199741,1770900658653,-176.82597589,0.00035616,5]
[405199742,1770900658664,-530.42323417,0.00035616,5]
[405199743,1770900658674,-500.0,0.00035616,5]
[405199744,1770900658683,-500.0,0.00035616,5]
[405199745,1770900658692,-500.0,0.00035616,5]
[405199746,1770900658702,-500.0,0.00035616,5]
[405199747,1770900658712,-500.0,0.00035616,5]
[405199748,1770900658722,-500.0,0.00035616,5]
[405199749,1770900658732,-500.0,0.00035616,5]
[405199750,1770900658743,-543.57419326,0.00035616,5]
[405199751,1770900658752,-500.0,0.00035616,5]
[405199752,1770900658762,-500.0,0.00035616,5]
[405199753,1770900658774,-702.48,0.00035616,5]
[405199754,1770900658784,-4185.11,0.00035616,5]
[405199755,1770900658795,-804.1,0.00035616,5]
[405199756,1770900658807,-360.68398532,0.00035616,5]
[405199757,1770900658818,-500.0,0.00035616,5]
[405199758,1770900658829,-1795.55,0.00035616,5]
[405199759,1770900658839,-589.27914011,0.00035616,5]
[405199760,1770900658851,-680.21,0.00035616,5]
[405199761,1770900658862,-500.0,0.00035616,5]
[405199762,1770900658872,-551.43390066,0.00035616,5]
[405199763,1770900658882,-3078.96,0.00035616,2]
[405199764,1770900658894,-500.0,0.00035616,5]
[405199765,1770900658903,-61531.34,0.00035616,5]
[405199766,1770900658913,-251.18946644,0.00035616,5]
[405199767,1770900658923,-158.73450473,0.00035616,5]
[405199768,1770900658937,-4758.663936,0.00035616,5]
[405199769,1770900658957,-383.16717929,0.00035616,5]
[405199770,1770900658977,-504.37,0.00035616,5]
[405199771,1770900658997,-500.0,0.00035616,5]
[405199772,1770900659010,-500.0,0.00035616,5]
[405199773,1770900659022,-500.0,0.00035616,5]
[405199774,1770900659033,-769.52,0.00035616,5]
[405199775,1770900659042,-151.0,0.00035616,31]
[405199776,1770900659054,-151.0,0.00035616,31]
[405199777,1770900659064,-151.0,0.00035616,31]
[405199778,1770900659074,-151.0,0.00035616,31]
[405199779,1770900659086,-151.0,0.00035616,31]
[405199780,1770900659101,-151.0,0.00035616,31]
[405199781,1770900659112,-285.159533,0.00035616,31]
[405199782,1770900659123,-173.78,0.000357,7]
[405199783,1770900659133,-163.13,0.000357,7]
[405199784,1770900659148,-12454.17,0.000357,14]
[405199785,1770900659159,-5000.0,0.00035739,49]
[405199786,1770900659173,-4410.91079638,0.0003575,2]
[405199787,1770900659186,-4911.0,0.0003575,7]
[405199788,1770900659196,-160.0,0.00035755,7]
[405199789,1770900659207,-500.0,0.0003589,5]
[405199790,1770900659217,-500.0,0.0003589,5]
[405199791,1770900659227,-583.7,0.0003589,5]
[405199792,1770900659236,-500.0,0.0003589,5]
[405199793,1770900659247,-618.04050529,0.0003589,5]
[405199794,1770900659255,-771.02,0.0003589,5]
[405199795,1770900659266,-500.0,0.0003589,2]
[405199796,1770900659277,-1000.0,0.0003589,2]
[405199797,1770900659289,-646.95182274,0.0003589,5]
[405199798,1770900659300,-500.0,0.0003589,5]
[405199799,1770900659314,-500.0,0.0003589,5]
[405199800,1770900659327,-500.0,0.0003589,5]
[405199801,1770900659336,-500.0,0.0003589,5]
[405199802,1770900659344,-1117.07,0.0003589,5]
[405199803,1770900659353,-500.0,0.0003589,5]
[405199804,1770900659411,-500.0,0.0003589,5]
[405199805,1770900659420,-500.0,0.0003589,5]
[405199806,1770900659429,-1000.0,0.0003589,2]
[405199807,1770900659439,-500.0,0.0003589,5]
[405199808,1770900659450,-939.98,0.0003589,5]
[405199809,1770900659461,-500.0,0.0003589,5]
[405199810,1770900659471,-500.0,0.0003589,5]
[405199811,1770900659480,-500.0,0.0003589,5]
[405199812,1770900659489,-914.41,0.0003589,5]
[405199813,1770900659499,-742.27,0.0003589,5]
[405199814,1770900659510,-500.0,0.0003589,5]
[405199815,1770900659520,-500.0,0.0003589,5]
[405199816,1770900659528,-863.41,0.0003589,5]
[405199817,1770900659537,-500.0,0.0003589,5]
[405199818,1770900659546,-500.0,0.0003589,5]
[405199819,1770900659555,-500.0,0.0003589,5]
[405199820,1770900659563,-666.32,0.0003589,5]
[405199821,1770900659573,-500.0,0.0003589,5]
[405199822,1770900659581,-853.93,0.0003589,5]
[405199823,1770900659589,-500.0,0.0003589,5]
[405199824,1770900659597,-500.0,0.0003589,5]
[405199825,1770900659606,-500.0,0.0003589,5]
[405199826,1770900659613,-500.0,0.0003589,5]
[405199827,1770900659621,-503.88220153,0.0003589,5]
[405199828,1770900659629,-500.0,0.0003589,5]
[405199829,1770900659636,-500.0,0.0003589,5]
[405199830,1770900659644,-500.0,0.0003589,5]
[405199831,1770900659653,-500.0,0.0003589,5]
[405199832,1770900659661,-500.0,0.0003589,5]
[405199833,1770900659671,-500.0,0.0003589,5]
[405199834,1770900659681,-707.95,0.0003589,5]
[405199835,1770900659691,-773.6,0.0003589,5]
[405199836,1770900659703,-500.0,0.0003589,5]
[405199837,1770900659714,-500.0,0.0003589,5]
[405199838,1770900659726,-500.0,0.0003589,5]
[405199839,1770900659737,-272.53415982,0.0003589,5]
[405199840,1770900659747,-500.0,0.0003589,5]
[405199841,1770900659756,-500.0,0.0003589,5]
[405199842,1770900659765,-500.0,0.0003589,5]
[405199843,1770900659776,-1614.44,0.0003589,5]
[405199844,1770900659786,-500.0,0.0003589,5]
[405199845,1770900659796,-500.0,0.0003589,5]
[405199846,1770900659806,-538.5,0.0003589,5]
[405199847,1770900659816,-500.0,0.0003589,5]
[405199848,1770900659826,-500.0,0.0003589,5]
[405199849,1770900659837,-163.32236573,0.0003589,5]
[405199850,1770900659846,-495.17975432,0.0003589,5]
[405199851,1770900659855,-517.22,0.0003589,5]
[405199852,1770900659865,-593.969704,0.0003589,5]
[405199853,1770900659874,-444.80276664,0.0003589,5]
[405199854,1770900659884,-500.0,0.0003589,5]
[405199855,1770900659895,-500.0,0.0003589,5]
[405199856,1770900659907,-500.0,0.0003589,5]
[405199857,1770900659917,-500.0,0.0003589,5]
[405199858,1770900659929,-500.0,0.0003589,5]
[405199859,1770900659942,-500.0,0.0003589,5]
[405199860,1770900659953,-500.0,0.0003589,5]
[405199861,1770900659967,-8808.21,0.0003589,5]
[405199862,1770900659977,-500.0,0.0003589,5]
[405199863,1770900659987,-500.0,0.0003589,5]
[405199864,1770900659996,-593.39,0.0003589,2]
[405199865,1770900660005,-2336.57,0.0003589,5]
[405199866,1770900660015,-500.0,0.0003589,5]
[405199867,1770900660025,-500.0,0.0003589,5]
[405199868,1770900660035,-12247.88,0.0003589,5]
[405199869,1770900660045,-500.0,0.0003589,5]
[405199870,1770900660058,-1253.57,0.0003589,5]
[405199871,1770900660070,-500.0,0.0003589,5]
[405199872,1770900660082,-500.0,0.0003589,5]
[405199873,1770900660095,-500.0,0.0003589,5]
[405199874,1770900660109,-500.0,0.0003589,5]
[405199875,1770900660119,-715.12,0.0003589,5]
[405199876,1770900660128,-5005.86,0.0003589,2]
[405199877,1770900660138,-500.0,0.0003589,5]
[405199878,1770900660148,-500.0,0.0003589,5]
[405199879,1770900660159,-500.0,0.0003589,5]
[405199880,1770900660177,-500.0,0.0003589,5]
[405199881,1770900660189,-500.0,0.0003589,5]
[405199882,1770900660199,-500.0,0.0003589,5]
[405199883,1770900660211,-500.0,0.0003589,5]
[405199884,1770900660223,-500.0,0.0003589,5]
[405199885,1770900660235,-221.25545696,0.0003589,5]
[405199886,1770900660244,-500.0,0.0003589,5]
[405199887,1770900660253,-592.13766694,0.0003589,5]
[405199888,1770900660263,-702.48,0.0003589,5]
[405199889,1770900660272,-4185.11,0.0003589,5]
[405199890,1770900660282,-804.1,0.0003589,5]
[405199891,1770900660293,-500.42534834,0.0003589,5]
[405199892,1770900660305,-1795.55,0.0003589,5]
[405199893,1770900660315,-680.21,0.0003589,5]
[405199894,1770900660325,-541.79611087,0.0003589,5]
[405199895,1770900660335,-3078.96,0.0003589,2]
[405199896,1770900660344,-500.0,0.0003589,5]
[405199897,1770900660354,-61531.34,0.0003589,5]
[405199898,1770900660363,-504.37,0.0003589,5]
[405199899,1770900660372,-500.0,0.0003589,5]
[405199900,1770900660382,-500.0,0.0003589,5]
[405199901,1770900660392,-253.78978724,0.0003589,5]
[405199902,1770900660401,-769.52,0.0003589,5]
[405199903,1770900660411,-210.0,0.0003597,3]
[405199904,1770900660421,-196.9159,0.00036,30]
[405199905,1770900660431,-1111.44316754,0.00036,120]
[405199906,1770900660440,-606.61636377,0.00036,2]
[405199907,1770900660450,-742.60909304,0.00036,7]
[405199908,1770900660459,-9835.25952644,0.00036102,3]
[405199909,1770900660471,-2166.0,0.00036106,2]
[405199910,1770900660480,-633.0,0.00036106,2]
[405199911,1770900660490,-168.2306,0.00036131,2]
[405199912,1770900660499,-500.0,0.00036164,5]
[405199913,1770900660509,-635.33111534,0.00036164,5]
[405199914,1770900660518,-583.7,0.00036164,5]
[405199915,1770900660527,-500.0,0.00036164,5]
[405199916,1770900660537,-771.02,0.00036164,5]
[405199917,1770900660547,-500.0,0.00036164,2]
[405199918,1770900660556,-1000.0,0.00036164,2]
[405199919,1770900660566,-500.0,0.00036164,5]
[405199920,1770900660576,-592.8534691,0.00036164,5]
[405199921,1770900660586,-500.0,0.00036164,5]
[405199922,1770900660595,-500.0,0.00036164,5]
[405199923,1770900660605,-1117.07,0.00036164,5]
[405199924,1770900660615,-393.10644554,0.00036164,5]
[405199925,1770900660624,-500.0,0.00036164,5]
[405199926,1770900660634,-500.0,0.00036164,5]
[405199927,1770900660644,-1000.0,0.00036164,2]
[405199928,1770900660654,-500.0,0.00036164,5]
[405199929,1770900660663,-939.98,0.00036164,5]
[405199930,1770900660672,-500.0,0.00036164,5]
[405199931,1770900660682,-500.0,0.00036164,5]
[405199932,1770900660691,-500.0,0.00036164,5]
[405199933,1770900660701,-914.41,0.00036164,5]
[405199934,1770900660710,-742.27,0.00036164,5]
[405199935,1770900660720,-506.93023252,0.00036164,5]
[405199936,1770900660729,-500.0,0.00036164,5]
[405199937,1770900660739,-863.41,0.00036164,5]
[405199938,1770900660748,-502.95882119,0.00036164,5]
[405199939,1770900660758,-500.0,0.00036164,5]
[405199940,1770900660767,-500.0,0.00036164,5]
[405199941,1770900660777,-666.32,0.00036164,5]
[405199942,1770900660786,-506.7603771,0.00036164,5]
[405199943,1770900660796,-853.93,0.00036164,5]
[405199944,1770900660805,-500.0,0.00036164,5]
[405199945,1770900660815,-500.0,0.00036164,5]
[405199946,1770900660826,-500.0,0.00036164,5]
[405199947,1770900660836,-500.0,0.00036164,5]
[405199948,1770900660846,-500.0,0.00036164,5]
[405199949,1770900660856,-506.01885928,0.00036164,5]
[405199950,1770900660866,-519.58851901,0.00036164,5]
[405199951,1770900660875,-500.0,0.00036164,5]
[405199952,1770900660885,-500.0,0.00036164,5]
[405199953,1770900660895,-500.0,0.00036164,5]
[405199954,1770900660904,-707.95,0.00036164,5]
[405199955,1770900660914,-773.6,0.00036164,5]
[405199956,1770900660924,-506.28389059,0.00036164,5]
[405199957,1770900660934,-520.48894032,0.00036164,5]
[405199958,1770900660944,-508.50353769,0.00036164,5]
[405199959,1770900660954,-500.0,0.00036164,5]
[405199960,1770900660963,-500.0,0.00036164,5]
[405199961,1770900660973,-500.0,0.00036164,5]
[405199962,1770900660983,-1614.44,0.00036164,5]
[405199963,1770900660993,-187.68944676,0.00036164,5]
[405199964,1770900661003,-500.0,0.00036164,5]
[405199965,1770900661012,-538.5,0.00036164,5]
[405199966,1770900661022,-500.0,0.00036164,5]
[405199967,1770900661031,-500.0,0.00036164,5]
[405199968,1770900661040,-517.22,0.00036164,5]
[405199969,1770900661050,-500.0,0.00036164,5]
[405199970,1770900661059,-500.0,0.00036164,5]
[405199971,1770900661069,-500.0,0.00036164,5]
[405199972,1770900661079,-500.0,0.00036164,5]
[405199973,1770900661090,-500.0,0.00036164,5]
[405199974,1770900661103,-500.0,0.00036164,5]
[405199975,1770900661113,-500.0,0.00036164,5]
[405199976,1770900661124,-8808.21,0.00036164,5]
[405199977,1770900661135,-500.0,0.00036164,5]
[405199978,1770900661144,-500.0,0.00036164,5]
[405199979,1770900661154,-593.39,0.00036164,2]
[405199980,1770900661163,-2336.57,0.00036164,5]
[405199981,1770900661173,-500.0,0.00036164,5]
[405199982,1770900661183,-500.0,0.00036164,5]
[405199983,1770900661193,-12247.88,0.00036164,5]
[405199984,1770900661203,-500.0,0.00036164,5]
[405199985,1770900661213,-1253.57,0.00036164,5]
[405199986,1770900661223,-500.0,0.00036164,5]
[405199987,1770900661232,-420.87014501,0.00036164,5]
[405199988,1770900661242,-500.0,0.00036164,5]
[405199989,1770900661252,-500.0,0.00036164,5]
[405199990,1770900661261,-715.12,0.00036164,5]
[405199991,1770900661271,-5005.86,0.00036164,2]
[405199992,1770900661281,-500.0,0.00036164,5]
[405199993,1770900661290,-500.0,0.00036164,5]
[405199994,1770900661300,-500.0,0.00036164,5]
[405199995,1770900661309,-405.50856062,0.00036164,5]
[405199996,1770900661318,-321.05257547,0.00036164,5]
[405199997,1770900661333,-500.0,0.00036164,5]
[405199998,1770900661342,-500.0,0.00036164,5]
[405199999,1770900661352,-644.20275122,0.00036164,5]
[405200000,1770900661361,-644.89568604,0.00036164,5]
[405200001,1770900661371,-702.48,0.00036164,5]
[405200002,1770900661380,-4185.11,0.00036164,5]
[405200003,1770900661390,-804.1,0.00036164,5]
[405200004,1770900661399,-1795.55,0.00036164,5]
[405200005,1770900661408,-680.21,0.00036164,5]
[405200006,1770900661417,-3078.96,0.00036164,2]
[405200007,1770900661426,-500.0,0.00036164,5]
[405200008,1770900661437,-61531.34,0.00036164,5]
[405200009,1770900661447,-504.37,0.00036164,5]
[405200010,1770900661457,-500.0,0.00036164,5]
[405200011,1770900661479,-500.0,0.00036164,5]
[405200012,1770900661499,-769.52,0.00036164,5]
[405200013,1770900661510,-154.0,0.00036264,2]
[405200014,1770900661521,-154.0,0.00036264,2]
[405200015,1770900661531,-154.0,0.00036264,2]
[405200016,1770900661543,-154.0,0.00036264,2]
[405200017,1770900661552,-154.0,0.00036264,2]
[405200018,1770900661562,-154.0,0.00036264,2]
[405200019,1770900661573,-154.0,0.00036264,2]
[405200020,1770900661664,-154.0,0.00036264,2]
[405200021,1770900661674,-154.0,0.00036264,2]
[405200022,1770900661683,-154.0,0.00036264,2]
[405200023,1770900661693,-154.0,0.00036264,2]
[405200024,1770900661703,-154.0,0.00036264,2]
[405200025,1770900661712,-154.0,0.00036264,2]
[405200026,1770900661722,-154.0,0.00036264,2]
[405200027,1770900661731,-154.0,0.00036264,2]
[405200028,1770900661741,-154.0,0.00036264,2]
[405200029,1770900661750,-154.0,0.00036264,2]
[405200030,1770900661759,-154.0,0.00036264,2]
[405200031,1770900661769,-154.0,0.00036264,2]
[405200032,1770900661778,-154.0,0.00036264,2]
[405200033,1770900661787,-154.0,0.00036264,2]
[405200034,1770900661796,-154.0,0.00036264,2]
[405200035,1770900661806,-154.0,0.00036264,2]
[405200036,1770900661817,-154.0,0.00036264,2]
[405200037,1770900661828,-154.0,0.00036264,2]
[405200038,1770900661838,-154.0,0.00036264,2]
[405200039,1770900661847,-154.0,0.00036264,2]
[405200040,1770900661857,-154.0,0.00036264,2]
[405200041,1770900661868,-154.0,0.00036264,2]
[405200042,1770900661878,-154.0,0.00036264,2]
[405200043,1770900661887,-154.0,0.00036264,2]
[405200044,1770900661897,-154.0,0.00036264,2]
[405200045,1770900661906,-154.0,0.00036264,2]
[405200046,1770900661915,-154.0,0.00036264,2]
[405200047,1770900661925,-154.0,0.00036264,2]
[405200048,1770900661934,-154.0,0.00036264,2]
[405200049,1770900661944,-154.0,0.00036264,2]
[405200050,1770900661954,-154.0,0.00036264,2]
[405200051,1770900661964,-268.36768425,0.00036264,2]
[405200052,1770900661973,-154.0,0.00036264,2]
[405200053,1770900661983,-6453.0,0.00036264,3]
[405200054,1770900661993,-403.39596658,0.00036438,5]
[405200055,1770900662003,-583.7,0.00036438,5]
[405200056,1770900662012,-303.21190286,0.00036438,5]
[405200057,1770900662022,-771.02,0.00036438,5]
[405200058,1770900662032,-500.0,0.00036438,2]
[405200059,1770900662041,-1000.0,0.00036438,2]
[405200060,1770900662051,-500.0,0.00036438,5]
[405200061,1770900662060,-500.0,0.00036438,5]
[405200062,1770900662070,-500.0,0.00036438,5]
[405200063,1770900662080,-1117.07,0.00036438,5]
[405200064,1770900662090,-500.0,0.00036438,5]
[405200065,1770900662102,-276.57850953,0.00036438,5]
[405200066,1770900662112,-1000.0,0.00036438,2]
[405200067,1770900662121,-500.0,0.00036438,5]
[405200068,1770900662132,-939.98,0.00036438,5]
[405200069,1770900662144,-500.0,0.00036438,5]
[405200070,1770900662153,-535.42870752,0.00036438,5]
[405200071,1770900662164,-500.0,0.00036438,5]
[405200072,1770900662174,-914.41,0.00036438,5]
[405200073,1770900662184,-742.27,0.00036438,5]
[405200074,1770900662193,-500.0,0.00036438,5]
[405200075,1770900662203,-863.41,0.00036438,5]
[405200076,1770900662214,-500.0,0.00036438,5]
[405200077,1770900662223,-566.72979994,0.00036438,5]
[405200078,1770900662233,-666.32,0.00036438,5]
[405200079,1770900662242,-853.93,0.00036438,5]
[405200080,1770900662251,-500.0,0.00036438,5]
[405200081,1770900662261,-506.54982872,0.00036438,5]
[405200082,1770900662270,-500.0,0.00036438,5]
[405200083,1770900662279,-500.0,0.00036438,5]
[405200084,1770900662289,-500.0,0.00036438,5]
[405200085,1770900662299,-500.0,0.00036438,5]
[405200086,1770900662308,-500.0,0.00036438,5]
[405200087,1770900662318,-707.95,0.00036438,5]
[405200088,1770900662330,-773.6,0.00036438,5]
[405200089,1770900662340,-500.0,0.00036438,5]
[405200090,1770900662349,-500.0,0.00036438,5]
[405200091,1770900662359,-500.0,0.00036438,5]
[405200092,1770900662368,-1614.44,0.00036438,5]
[405200093,1770900662378,-500.0,0.00036438,5]
[405200094,1770900662387,-538.5,0.00036438,5]
[405200095,1770900662397,-425.90960503,0.00036438,5]
[405200096,1770900662406,-500.0,0.00036438,5]
[405200097,1770900662415,-517.22,0.00036438,5]
[405200098,1770900662425,-500.0,0.00036438,5]
[405200099,1770900662434,-500.0,0.00036438,5]
[405200100,1770900662443,-500.0,0.00036438,5]
[405200101,1770900662453,-461.12220756,0.00036438,5]
[405200102,1770900662462,-500.0,0.00036438,5]
[405200103,1770900662471,-500.0,0.00036438,5]
[405200104,1770900662480,-373.94290046,0.00036438,5]
[405200105,1770900662490,-8808.21,0.00036438,5]
[405200106,1770900662499,-500.0,0.00036438,5]
[405200107,1770900662509,-300.29179994,0.00036438,5]
[405200108,1770900662518,-593.39,0.00036438,2]
[405200109,1770900662527,-2336.57,0.00036438,5]
[405200110,1770900662537,-566.86293119,0.00036438,5]
[405200111,1770900662546,-500.0,0.00036438,5]
[405200112,1770900662556,-12247.88,0.00036438,5]
[405200113,1770900662566,-162.09755812,0.00036438,5]
[405200114,1770900662577,-1253.57,0.00036438,5]
[405200115,1770900662587,-500.0,0.00036438,5]
[405200116,1770900662597,-500.0,0.00036438,5]
[405200117,1770900662607,-258.44931022,0.00036438,5]
[405200118,1770900662618,-715.12,0.00036438,5]
[405200119,1770900662628,-5005.86,0.00036438,2]
[405200120,1770900662647,-500.0,0.00036438,5]
[405200121,1770900662656,-500.0,0.00036438,5]
[405200122,1770900662667,-500.0,0.00036438,5]
[405200123,1770900662676,-500.0,0.00036438,5]
[405200124,1770900662686,-500.0,0.00036438,5]
[405200125,1770900662696,-702.48,0.00036438,5]
[405200126,1770900662706,-4185.11,0.00036438,5]
[405200127,1770900662715,-804.1,0.00036438,5]
[405200128,1770900662727,-1795.55,0.00036438,5]
[405200129,1770900662737,-680.21,0.00036438,5]
[405200130,1770900662747,-3078.96,0.00036438,2]
[405200131,1770900662757,-500.0,0.00036438,5]
[405200132,1770900662767,-61531.34,0.00036438,5]
[405200133,1770900662776,-504.37,0.00036438,5]
[405200134,1770900662786,-500.0,0.00036438,5]
[405200135,1770900662795,-500.0,0.00036438,5]
[405200136,1770900662806,-769.52,0.00036438,5]
[405200137,1770900662815,-154.84254871,0.00036466,30]
[405200138,1770900662826,-791.0,0.00036515,11]
[405200139,1770900662836,-410.0,0.00036547,11]
[405200140,1770900662846,-2000.0,0.00036603,2]
[405200141,1770900662855,-160.0,0.00036667,8]
[405200142,1770900662865,-712.0,0.00036668,11]
[405200143,1770900662875,-3294.19,0.000367,30]
[405200144,1770900662884,-583.7,0.00036712,5]
[405200145,1770900662894,-771.02,0.00036712,5]
[405200146,1770900662903,-500.0,0.00036712,2]
[405200147,1770900662913,-1000.0,0.00036712,2]
[405200148,1770900662922,-500.0,0.00036712,5]
[405200149,1770900662931,-500.0,0.00036712,5]
[405200150,1770900662941,-500.0,0.00036712,5]
[405200151,1770900662950,-1117.07,0.00036712,5]
[405200152,1770900662960,-500.0,0.00036712,5]
[405200153,1770900662970,-1000.0,0.00036712,2]
[405200154,1770900662979,-203.78573616,0.00036712,5]
[405200155,1770900662989,-939.98,0.00036712,5]
[405200156,1770900662998,-527.60978265,0.00036712,5]
[405200157,1770900663008,-500.0,0.00036712,5]
[405200158,1770900663018,-914.41,0.00036712,5]
[405200159,1770900663028,-742.27,0.00036712,5]
[405200160,1770900663037,-500.0,0.00036712,5]
[405200161,1770900663047,-863.41,0.00036712,5]
[405200162,1770900663056,-500.0,0.00036712,5]
[405200163,1770900663066,-666.32,0.00036712,5]
[405200164,1770900663077,-853.93,0.00036712,5]
[405200165,1770900663087,-255.92924031,0.00036712,5]
[405200166,1770900663101,-500.0,0.00036712,5]
[405200167,1770900663111,-500.0,0.00036712,5]
[405200168,1770900663120,-500.0,0.00036712,5]
[405200169,1770900663130,-500.0,0.00036712,5]
[405200170,1770900663139,-500.0,0.00036712,5]
[405200171,1770900663149,-707.95,0.00036712,5]
[405200172,1770900663159,-773.6,0.00036712,5]
[405200173,1770900663169,-500.0,0.00036712,5]
[405200174,1770900663179,-500.0,0.00036712,5]
[405200175,1770900663188,-500.0,0.00036712,5]
[405200176,1770900663198,-1614.44,0.00036712,5]
[405200177,1770900663209,-547.54539346,0.00036712,5]
[405200178,1770900663218,-538.5,0.00036712,5]
[405200179,1770900663226,-558.80254914,0.00036712,5]
[405200180,1770900663235,-517.22,0.00036712,5]
[405200181,1770900663245,-566.90900908,0.00036712,5]
[405200182,1770900663254,-500.0,0.00036712,5]
[405200183,1770900663263,-500.0,0.00036712,5]
[405200184,1770900663271,-500.0,0.00036712,5]
[405200185,1770900663280,-500.0,0.00036712,5]
[405200186,1770900663289,-8808.21,0.00036712,5]
[405200187,1770900663298,-345.39598326,0.00036712,5]
[405200188,1770900663307,-593.39,0.00036712,2]
[405200189,1770900663317,-2336.57,0.00036712,5]
[405200190,1770900663327,-500.0,0.00036712,5]
[405200191,1770900663336,-12247.88,0.00036712,5]
[405200192,1770900663345,-1253.57,0.00036712,5]
[405200193,1770900663355,-500.0,0.00036712,5]
[405200194,1770900663364,-500.0,0.00036712,5]
[405200195,1770900663374,-715.12,0.00036712,5]
[405200196,1770900663383,-5005.86,0.00036712,2]
[405200197,1770900663392,-500.0,0.00036712,5]
[405200198,1770900663401,-500.0,0.00036712,5]
[405200199,1770900663411,-500.0,0.00036712,5]
[405200200,1770900663420,-500.0,0.00036712,5]
[405200201,1770900663429,-500.0,0.00036712,5]
[405200202,1770900663438,-702.48,0.00036712,5]
[405200203,1770900663447,-4185.11,0.00036712,5]
[405200204,1770900663457,-804.1,0.00036712,5]
[405200205,1770900663467,-1795.55,0.00036712,5]
[405200206,1770900663476,-680.21,0.00036712,5]
[405200207,1770900663486,-3078.96,0.00036712,2]
[405200208,1770900663496,-500.0,0.00036712,5]
[405200209,1770900663506,-61531.34,0.00036712,5]
[405200210,1770900663515,-504.37,0.00036712,5]
[405200211,1770900663525,-500.0,0.00036712,5]
[405200212,1770900663535,-500.0,0.00036712,5]
[405200213,1770900663544,-769.52,0.00036712,5]
[405200214,1770900663554,-712.0,0.00036718,11]
[405200215,1770900663563,-401.0,0.00036792,11]
[405200216,1770900663573,-200.0,0.00036821,120]
[405200217,1770900663583,-721.0,0.00036867,11]
[405200218,1770900663592,-22000.0,0.000369,7]
[405200219,1770900663602,-2828.95,0.000369,7]
[405200220,1770900663612,-154.84254871,0.00036932,30]
[405200221,1770900663622,-583.7,0.00036986,5]
[405200222,1770900663631,-771.02,0.00036986,5]
[405200223,1770900663641,-500.0,0.00036986,2]
[405200224,1770900663650,-1000.0,0.00036986,2]
[405200225,1770900663659,-500.0,0.00036986,5]
[405200226,1770900663668,-500.0,0.00036986,5]
[405200227,1770900663678,-500.0,0.00036986,5]
[405200228,1770900663687,-1117.07,0.00036986,5]
[405200229,1770900663696,-500.0,0.00036986,5]
[405200230,1770900663706,-1000.0,0.00036986,2]
[405200231,1770900663715,-939.98,0.00036986,5]
[405200232,1770900663725,-500.0,0.00036986,5]
[405200233,1770900663734,-914.41,0.00036986,5]
[405200234,1770900663744,-742.27,0.00036986,5]